fUST/lending_fUST_20250827
["ID","MTS","AMOUNT","RATE_DAILY","PERIOD"]
[381527448,1756255848348,-500.0,0.00026351,2]
[381527449,1756255848357,-500.0,0.00026351,2]
[381527450,1756255848367,-500.0,0.00026351,2]
[381527451,1756255848376,-500.0,0.00026351,2]
[381527452,1756255848385,-500.0,0.00026351,2]
[381527453,1756255848394,-161.69182809,0.00026351,2]
[381527454,1756255848404,-500.0,0.00026351,2]
[381527455,1756255848413,-500.0,0.00026351,2]
[381527456,1756255848422,-377.65679126,0.00026351,2]
[381527457,1756255848431,-499.99999999,0.00026351,2]
[381527458,1756255848441,-500.0,0.00026351,2]
[381527459,1756255848450,-500.0,0.00026351,2]
[381527460,1756255848460,-500.0,0.00026351,2]
[381527461,1756255848469,-44538.45974353,0.00026351,2]
[381527462,1756255848479,-23564.4681762,0.00026352,2]
[381527463,1756255848488,-409.61325928,0.00026352,2]
[381527464,1756255848502,-583.39,0.00026352,3]
[381527465,1756255848511,-291.69,0.00026352,3]
[381527466,1756255848520,-875.11,0.00026352,3]
[381527467,1756255848529,-5891.11704404,0.00026357,2]
[381527468,1756255848539,-156321.12816548,0.00026362,2]
[381527469,1756255848548,-500.0,0.00026366,2]
[381527470,1756255848558,-21002.5560163,0.00026367,2]
[381527471,1756255848568,-505.61033,0.00026373,2]
[381527472,1756255848578,-500.0,0.00026373,2]
[381527473,1756255848590,-511.58,0.00026373,2]
[381527474,1756255848600,-500.0,0.00026373,2]
[381527475,1756255848610,-500.0,0.00026373,2]
[381527476,1756255848619,-500.0,0.00026373,2]
[381527477,1756255848630,-2070.67,0.00026383,2]
[381527478,1756255848639,-2947.12995041,0.00026494,2]
[381527479,1756255848648,-220.0,0.00026557,2]
[381527480,1756255848658,-282.61322093,0.00026606,2]
[381527481,1756255848667,-317.19672673,0.00026675,2]
[381527482,1756255848677,-427.723851,0.00026676,2]
[381527483,1756255848686,-309.0,0.000268,2]
[381527484,1756255848695,-2510.727337,0.00026806,6]
[381527485,1756255848705,-1000.0,0.00026921,2]
[381527486,1756255848714,-274.40347562,0.00026946,2]
[381527487,1756255848724,-5891.11704404,0.0002698,2]
[381527488,1756255848733,-26431.993852,0.0002699,2]
[381527489,1756255848743,-200.0,0.00027,14]
[381527490,1756255848752,-317.19672673,0.00027083,2]
[381527491,1756255848761,-182.84613314,0.0002717,2]
[381527492,1756255848771,-193.80954464,0.00027321,2]
[381527493,1756255848780,-232.23489493,0.00027363,2]
[381527494,1756255848789,-153.40941434,0.00027377,2]
[381527495,1756255848798,-160.0,0.00027689,2]
[381527496,1756255848808,-47128.9363523,0.00027696,2]
[381527497,1756255848817,-819.22651856,0.00027696,2]
[381527498,1756255848826,-168.0,0.000277,2]
[381527499,1756255848835,-2146.01,0.000277,7]
[381527500,1756255848845,-23765.97496545,0.00027706,2]
[381527501,1756255853222,5000.0,0.000252,2]
[381527502,1756255868973,228.33888083,0.000252,2]
[381527503,1756255868997,4771.66111917,0.000252,2]
[381527504,1756255884679,5000.0,0.000252,2]
[381527505,1756255899935,5000.0,0.000252,2]
[381527506,1756255916518,5000.0,0.000252,2]
[381527507,1756255931982,5000.0,0.000252,2]
[381527508,1756255937598,-355.650674,0.00025928,2]
[381527509,1756255942644,2123.72870389,0.000199,2]
[381527510,1756255942733,2123.72870379,0.00021627,2]
[381527511,1756255942829,2123.72870379,0.00023353,2]
[381527512,1756255942935,2123.72870379,0.0002508,2]
[381527513,1756255947323,1505.09518474,0.000252,2]
[381527514,1756255947346,3494.90481526,0.000252,2]
[381527515,1756255962595,4675.20674321,0.000252,2]
[381527516,1756255985237,160.0,0.00021627,2]
[381527518,1756256116163,1903.7214241,0.000199,2]
[381527519,1756256116258,1903.72142404,0.00021627,2]
[381527520,1756256116409,1903.72142404,0.00023353,2]
[381527521,1756256116513,1903.72142404,0.0002508,2]
[381527522,1756256152865,-195.47,0.00025447,2]
[381527523,1756256227408,-257.91717519,0.00025447,2]
[381527524,1756256233113,1683.779003,0.00024984,2]
[381527525,1756256254273,-235.19655808,0.00025447,2]
[381527526,1756256254302,-5.68152146,0.00025447,2]
[381527528,1756256272897,660.308632,0.00013699,2]
[381527529,1756256273422,660.308632,0.00020187,2]
[381527530,1756256295533,1649.89190097,0.000199,2]
[381527531,1756256295638,1649.89190083,0.00021627,2]
[381527532,1756256295741,1649.89190083,0.00023353,2]
[381527533,1756256295848,1649.89190083,0.0002508,2]
[381527534,1756256305372,5000.0,0.000252,2]
[381527535,1756256309031,2076.8027709,0.00025037,2]
[381527536,1756256317480,-179.249725,0.00025447,2]
[381527537,1756256322786,5000.0,0.000252,2]
[381527538,1756256323184,-257.91717519,0.00025447,2]
[381527540,1756256338107,5000.0,0.000252,2]
[381527542,1756256354367,5000.0,0.000252,2]
[381527543,1756256369916,5000.0,0.000252,2]
[381527544,1756256371913,2009.1669681,0.000251,2]
[381527545,1756256385335,434.71481942,0.000252,2]
[381527546,1756256400657,-219.11092854,0.00025447,2]
[381527547,1756256400678,-160.0,0.00025503,2]
[381527548,1756256400703,-217.54020046,0.00025547,2]
[381527549,1756256417370,197.28,0.000252,7]
[381527550,1756256467959,-334.15266481,0.00025376,2]
[381527551,1756256469661,1644.27857111,0.000199,2]
[381527552,1756256469771,1644.27857107,0.00021627,2]
[381527553,1756256469872,1644.27857107,0.00023353,2]
[381527554,1756256470032,1644.27857107,0.0002508,2]
[381527555,1756256470285,-257.84733519,0.00025376,2]
[381527556,1756256470308,-32.89078376,0.00025547,2]
[381527557,1756256471987,-118.10921624,0.00025547,2]
[381527558,1756256472008,-77.57602134,0.00025547,2]
[381527559,1756256472033,-57.17979836,0.00025602,2]
[381527560,1756256473866,-242.82020164,0.00025602,2]
[381527561,1756256473889,-57.17979836,0.00025602,2]
[381527562,1756256475957,-168.51794038,0.00025602,2]
[381527563,1756256479848,-74.30226126,0.00025602,2]
[381527564,1756256479872,-82.1284096,0.00025602,2]
[381527565,1756256481501,-257.91717519,0.00025502,2]
[381527566,1756256481525,-172.35215395,0.00025602,2]
[381527567,1756256484324,-151.16803761,0.00025602,2]
[381527568,1756256486353,-182.45,0.00025602,2]
[381527569,1756256487896,-324.5473304,0.00025602,2]
[381527570,1756256512298,-193.76885521,0.00025602,2]
[381527571,1756256517046,-93.58521323,0.00025602,2]
[381527572,1756256517069,-58.41478677,0.00025602,2]
[381527573,1756256518859,-92.58521323,0.00025602,2]
[381527574,1756256518880,-69.89562599,0.00025603,2]
[381527575,1756256521087,-194.76254165,0.00025603,2]
[381527576,1756256524687,-160.1476271,0.00025602,2]
[381527578,1756256544830,666.0,0.00024746,2]
[381527579,1756256630576,612.72,0.000252,2]
[381527580,1756256643035,1425.04142828,0.000199,2]
[381527581,1756256643296,1425.04142826,0.00021627,2]
[381527582,1756256643398,1425.04142826,0.00023353,2]
[381527583,1756256643502,1425.04142826,0.0002508,2]
[381527584,1756256662403,-160.0,0.00025602,2]
[381527585,1756256664122,-259.21398912,0.00025602,2]
[381527586,1756256667793,-178.93960609,0.00025602,2]
[381527587,1756256670787,-158.5635418,0.00025602,2]
[381527588,1756256672816,-151.0,0.00025602,2]
[381527589,1756256676275,-170.76073732,0.00025602,2]
[381527590,1756256678997,-121.52212567,0.00025602,2]
[381527591,1756256679020,-45.55388521,0.00025602,2]
[381527592,1756256691892,559.3020117,0.00024813,2]
[381527593,1756256702720,-151.25984565,0.00025603,2]
[381527594,1756256704913,-280.96338507,0.00025602,2]
[381527595,1756256707707,-19.03661493,0.00025602,2]
[381527596,1756256707730,-159.02996361,0.00025602,2]
[381527597,1756256709332,-260.29113035,0.00025602,2]
[381527598,1756256713737,-281.461455,0.00025602,2]
[381527599,1756256715279,-177.48799263,0.00025602,2]
[381527600,1756256725417,177.48799263,0.000252,2]
[381527601,1756256810106,-414.2614158,0.00025435,2]
[381527602,1756256818088,1235.03590455,0.000199,2]
[381527603,1756256818206,1235.03590449,0.00021627,2]
[381527604,1756256818318,1235.03590449,0.00023353,2]
[381527605,1756256818428,1235.03590449,0.0002508,2]
[381527606,1756256832141,-177.7385842,0.00025435,2]
[381527607,1756256832163,-321.72945841,0.00025602,2]
[381527608,1756256832182,-300.0,0.00025602,2]
[381527609,1756256832203,-300.0,0.00025602,2]
[381527610,1756256832222,-1200.0,0.00025602,2]
[381527611,1756256832242,-84.08198671,0.00025603,2]
[381527612,1756256832262,-154.10021651,0.00025603,2]
[381527613,1756256832284,-500.0,0.00025603,2]
[381527614,1756256832304,-160.46903641,0.00025603,2]
[381527615,1756256836281,457.831105,0.00024835,2]
[381527616,1756256836656,706.837293,0.00024836,2]
[381527617,1756256857109,596.651129,0.00024854,2]
[381527618,1756256883099,197.82,0.00017597,2]
[381527619,1756256917469,-300.0,0.00025602,2]
[381527620,1756256917492,-44.44938106,0.00025603,2]
[381527621,1756256919839,683.6037885,0.000248,2]
[381527624,1756256940813,-152.32154594,0.00025602,2]
[381527625,1756256942288,-7.67845406,0.00025602,2]
[381527626,1756256942315,-145.87392945,0.00025603,2]
[381527627,1756256943891,-242.92676195,0.00025602,2]
[381527628,1756256946731,-57.07323805,0.00025602,2]
[381527629,1756256946755,-112.47738089,0.00025603,2]
[381527630,1756256951819,165.0,8.7e-07,2]
[381527631,1756256952871,165.0,8.7e-07,2]
[381527632,1756256953912,165.0,8.7e-07,2]
[381527633,1756256954951,165.0,8.7e-07,2]
[381527634,1756256955981,165.0,8.7e-07,2]
[381527635,1756256957034,165.0,8.7e-07,2]
[381527636,1756257002829,640.19998164,0.000199,2]
[381527637,1756257002854,435.39113572,0.000199,2]
[381527638,1756257002949,1075.59111722,0.00021627,2]
[381527639,1756257003078,1075.59111722,0.00023353,2]
[381527640,1756257003177,1075.59111722,0.0002508,2]
[381527663,1756257032416,-300.0,0.00025602,2]
[381527665,1756257032428,-175.61775059,0.00025602,2]
[381527682,1756257038416,-355.34658691,0.00025602,2]
[381527687,1756257040454,-669.0356625,0.00025602,2]
[381527688,1756257040464,-36.73027219,0.00025603,2]
[381527689,1756257040473,-302.17460759,0.00025603,2]
[381527691,1756257040483,-500.0,0.00025603,2]
[381527693,1756257040493,-374.80592802,0.00025603,2]
[381527697,1756257040970,-0.02193838,0.00025603,2]
[381527698,1756257041908,-35.5160495,0.00025603,2]
[381527699,1756257041930,-338.88159259,0.00025603,2]
[381527735,1756257047276,-147.84820194,0.00025603,2]
[381527736,1756257047285,-616.16918281,0.00025603,2]
[381527737,1756257047295,-500.0,0.00025603,2]
[381527738,1756257047304,-179.57435364,0.00025603,2]
[381527739,1756257047314,-151.0,0.00025603,2]
[381527740,1756257047323,-9529.0246745,0.00025604,2]
[381527741,1756257047331,-400.343047,0.00025607,2]
[381527742,1756257047341,-180.714364,0.00025928,2]
[381527743,1756257047350,-3390.1756454,0.0002598,2]
[381527744,1756257047359,-179.98591613,0.00025989,2]
[381527745,1756257047368,-500.0,0.00025989,2]
[381527746,1756257047378,-500.0,0.00025989,2]
[381527747,1756257047387,-500.0,0.00025989,2]
[381527748,1756257047396,-500.0,0.00025989,2]
[381527749,1756257047405,-500.0,0.00025989,2]
[381527750,1756257047415,-500.0,0.00025989,2]
[381527751,1756257047424,-500.0,0.00025989,2]
[381527752,1756257047433,-433.38983397,0.00025989,2]
[381527753,1756257047442,-500.0,0.00025989,2]
[381527754,1756257047452,-500.0,0.00025989,2]
[381527755,1756257047461,-500.0,0.00025989,2]
[381527756,1756257047470,-500.0,0.00025989,2]
[381527757,1756257047479,-500.0,0.00025989,2]
[381527758,1756257047488,-500.0,0.00025989,2]
[381527759,1756257047498,-500.0,0.00025989,2]
[381527760,1756257047507,-500.0,0.00025989,2]
[381527761,1756257047516,-500.0,0.00025989,2]
[381527762,1756257047525,-500.0,0.00025989,2]
[381527763,1756257047535,-500.0,0.00025989,2]
[381527764,1756257047544,-500.0,0.00025989,2]
[381527765,1756257047553,-165.0,0.00025989,2]
[381527766,1756257047563,-500.0,0.00025989,2]
[381527767,1756257047572,-500.0,0.00025989,2]
[381527768,1756257047582,-500.0,0.00025989,2]
[381527769,1756257047591,-500.0,0.00025989,2]
[381527770,1756257047600,-500.0,0.00025989,2]
[381527771,1756257047609,-500.0,0.00025989,2]
[381527772,1756257047618,-500.0,0.00025989,2]
[381527773,1756257047627,-500.0,0.00025989,2]
[381527774,1756257047637,-500.0,0.00025989,2]
[381527775,1756257047647,-100000.0,0.0002599,2]
[381527776,1756257047657,-180.714364,0.00026032,2]
[381527777,1756257047666,-226.432,0.00026046,12]
[381527778,1756257047675,-180.714364,0.00026136,2]
[381527779,1756257047685,-203.63740792,0.00026241,2]
[381527780,1756257047695,-660.308632,0.00026676,2]
[381527781,1756257047706,-6288.6959336,0.00026685,2]
[381527782,1756257047716,-461.61,0.0002679,2]
[381527783,1756257047725,-1075.59111722,0.00026806,6]
[381527784,1756257047735,-1858.56414463,0.00026869,2]
[381527785,1756257047745,-547.76,0.0002687,3]
[381527786,1756257047755,-273.88,0.0002687,3]
[381527787,1756257047765,-821.67,0.0002687,3]
[381527788,1756257047774,-501.16703155,0.00026873,2]
[381527789,1756257047784,-27121.4051632,0.0002688,2]
[381527790,1756257047794,-204.80662966,0.0002688,2]
[381527791,1756257047804,-189532.1587234,0.0002689,2]
[381527793,1756257059527,550.0,0.00027397,120]
[381527794,1756257188725,896.32593121,0.000199,2]
[381527795,1756257188767,896.32593101,0.00021627,2]
[381527796,1756257188856,896.32593101,0.00023353,2]
[381527797,1756257188956,896.32593101,0.0002508,2]
[381527798,1756257192672,561.262337,0.00013699,2]
[381527799,1756257192729,561.262337,0.00020187,2]
[381527801,1756257324545,1839.57243023,0.00031762,60]
[381527802,1756257353019,960.0,0.00031762,60]
[381527803,1756257378253,776.81580703,0.000199,2]
[381527804,1756257378350,776.81580687,0.00021627,2]
[381527805,1756257378454,776.81580687,0.00023353,2]
[381527806,1756257378558,776.81580687,0.0002508,2]
[381527807,1756257379593,-180.0541423,0.0002541,2]
[381527809,1756257558732,673.24036607,0.000199,2]
[381527810,1756257558767,673.24036595,0.00021627,2]
[381527811,1756257558827,673.24036595,0.00023353,2]
[381527812,1756257558927,673.24036595,0.0002508,2]
[381527813,1756257664095,165.0,8.7e-07,2]
[381527814,1756257743420,583.47743083,0.000199,2]
[381527815,1756257743484,583.47743062,0.00021627,2]
[381527816,1756257743636,583.47743062,0.00023353,2]
[381527817,1756257743727,583.47743062,0.0002508,2]
[381527818,1756257752876,4277.96811142,0.000252,2]
[381527819,1756257803535,1233.3069371,0.00024825,2]
[381527822,1756257907415,-164.019247,0.00025606,2]
[381527823,1756257914458,-371.70105377,0.00025606,2]
[381527824,1756257916890,702.91719164,0.000199,2]
[381527825,1756257917352,702.91719164,0.00021627,2]
[381527826,1756257917409,702.91719164,0.00023353,2]
[381527827,1756257917454,702.91719164,0.0002508,2]
[381527828,1756257917701,-294.29894623,0.00025606,2]
[381527829,1756257939948,-227.23635041,0.00025606,2]
[381527832,1756257972333,478.16969487,0.00025033,2]
[381527833,1756257995119,-142.74440259,0.00025606,2]
[381527834,1756257995140,-168.80772231,0.00025607,2]
[381527835,1756257995860,161.02769497,0.00024908,14]
[381527836,1756258024386,560.60638139,0.000252,2]
[381527837,1756258037887,1030.87615042,0.0002484,2]
[381527838,1756258038266,419.431973,0.00024889,2]
[381527839,1756258040557,2397.5962798,0.00024812,2]
[381527840,1756258044794,774.46294037,0.00025033,2]
[381527841,1756258049318,-300.0,0.00025607,2]
[381527842,1756258049340,-83.03047843,0.00025607,2]
[381527844,1756258060745,666.0,0.0002481,2]
[381527845,1756258071243,251.59366249,0.000209,2]
[381527846,1756258071392,5085.1157243,0.00018,2]
[381527847,1756258089841,609.19489946,0.000199,2]
[381527848,1756258089937,609.19489942,0.00021627,2]
[381527849,1756258090041,609.19489942,0.00023353,2]
[381527850,1756258090140,609.19489942,0.0002508,2]
[381527851,1756258105553,380.0,0.00024793,2]
[381527852,1756258111732,1203.89314,0.00024793,2]
[381527853,1756258116227,592.68576363,0.00025,2]
[381527854,1756258116787,2107.50999432,0.00024,60]
[381527855,1756258118468,342.59160489,0.0002,2]
[381527856,1756258119104,583.69508291,0.000149,2]
[381527857,1756258119292,1000.0,0.0001,2]
[381527858,1756258119770,2004.46646795,0.00023,2]
[381527859,1756258119964,3369.0610863,0.00018,2]
[381527860,1756258119987,10000.01,0.00018,2]
[381527861,1756258120008,10000.01,0.00018,2]
[381527862,1756258120030,6069.73834319,0.00018,2]
[381527863,1756258122731,4347.29505665,0.0002,2]
[381527864,1756258123508,5652.71494335,0.0002,2]
[381527865,1756258123529,273.02224451,0.0002,2]
[381527866,1756258123976,3127.3130427,0.00025,2]
[381527867,1756258149791,-67.96952157,0.00025607,2]
[381527868,1756258149813,-145.17959102,0.00025608,2]
[381527869,1756258151918,-199.0,0.00025608,2]
[381527870,1756258154394,-165.86420085,0.00025608,2]
[381527871,1756258157549,-225.71780587,0.00025608,2]
[381527872,1756258162764,-269.0988277,0.00025608,2]
[381527873,1756258165586,-199.0,0.00025608,2]
[381527874,1756258167937,388.928232,0.00024854,2]
[381527875,1756258168253,-181.02062697,0.00025608,2]
[381527876,1756258169942,-180.135331,0.00025608,2]
[381527877,1756258172818,-357.21891305,0.00025608,2]
[381527878,1756258175987,-310.90255367,0.00025608,2]
[381527880,1756258179295,-488.0659922,0.00025608,2]
[381527881,1756258182161,-297.61056082,0.00025608,2]
[381527882,1756258183745,-172.75147692,0.00025608,2]
[381527883,1756258206788,-460.0,0.00025608,2]
[381527884,1756258209491,-152.95697777,0.00025608,2]
[381527885,1756258210567,257.99707652,0.000252,2]
[381527886,1756258212322,-168.95,0.00025608,2]
[381527887,1756258214546,-168.95,0.00025608,2]
[381527888,1756258217133,-168.94994048,0.00025608,2]
[381527889,1756258218904,-467.95949257,0.00025608,2]
[381527890,1756258222211,-152.41272084,0.00025608,2]
[381527891,1756258223784,-151.70607044,0.00025608,2]
[381527892,1756258225308,-424.58916063,0.00025608,2]
[381527893,1756258229132,-195.86997953,0.00025608,2]
[381527900,1756258232236,-196.64743176,0.00025608,2]
[381527928,1756258232747,-3030.37793581,0.00025608,2]
[381527930,1756258232756,-1121.0,0.00025659,2]
[381527932,1756258232766,-1200.0,0.00025659,2]
[381527934,1756258232775,-160.0,0.00025825,2]
[381527936,1756258232785,-1115.71603517,0.0002589,30]
[381527938,1756258232795,-300.0,0.00025899,2]
[381527941,1756258232804,-2164.51090884,0.000259,2]
[381527944,1756258232813,-23.1951202,0.00025918,2]
[381527963,1756258241048,-119.29575601,0.00025918,2]
[381527986,1756258243741,-241.911335,0.00025918,2]
[381527987,1756258243751,-353.31194916,0.00025918,2]
[381528040,1756258246719,-9.58441111,0.00025918,2]
[381528042,1756258246729,-3319.56705,0.00025919,2]
[381528044,1756258246738,-500.0,0.00025989,2]
[381528046,1756258246748,-500.0,0.00025989,2]
[381528048,1756258246757,-500.0,0.00025989,2]
[381528050,1756258246768,-500.0,0.00025989,2]
[381528052,1756258246777,-500.0,0.00025989,2]
[381528054,1756258246787,-500.0,0.00025989,2]
[381528056,1756258246796,-500.0,0.00025989,2]
[381528058,1756258246808,-500.0,0.00025989,2]
[381528060,1756258246817,-500.0,0.00025989,2]
[381528062,1756258246827,-500.0,0.00025989,2]
[381528064,1756258246836,-500.0,0.00025989,2]
[381528066,1756258246846,-268.87288378,0.00025989,2]
[381528068,1756258246855,-500.0,0.00025989,2]
[381528070,1756258246865,-500.0,0.00025989,2]
[381528072,1756258246874,-500.0,0.00025989,2]
[381528074,1756258246884,-500.0,0.00025989,2]
[381528076,1756258246893,-500.0,0.00025989,2]
[381528078,1756258246903,-500.0,0.00025989,2]
[381528080,1756258246912,-500.0,0.00025989,2]
[381528082,1756258246921,-500.0,0.00025989,2]
[381528084,1756258246933,-378.01457231,0.00025989,2]
[381528086,1756258246942,-44752.41821462,0.0002599,2]
[381528088,1756258246952,-1000.0,0.00026,2]
[381528091,1756258246962,-1000.0,0.00026,2]
[381528093,1756258246972,-12874.75229376,0.00026,30]
[381528096,1756258246981,-12704.43797926,0.00026,30]
[381528099,1756258246991,-529.4218694,0.00026,30]
[381528102,1756258247001,-928.01064013,0.00026351,2]
[381528104,1756258247011,-613.02401969,0.00026351,2]
[381528107,1756258247021,-1254.36,0.00026567,10]
[381528110,1756258247030,-4366.0376295,0.00026577,2]
[381528113,1756258247039,-336.093665,0.00026586,2]
[381528116,1756258247048,-1239.04276308,0.00026701,2]
[381528120,1756258247060,-172.26140646,0.00026701,2]
[381528123,1756258247070,-399.83,0.0002678,3]
[381528126,1756258247079,-199.91,0.0002678,3]
[381528128,1756258247088,-599.78,0.0002678,3]
[381528131,1756258247098,-14916.7728398,0.0002678,2]
[381528134,1756258247108,-204.80662966,0.0002678,2]
[381528136,1756258247117,-268.53089496,0.0002679,2]
[381528138,1756258247127,-370000.0,0.0002679,2]
[381528140,1756258247136,-2355.16736668,0.00026801,2]
[381528142,1756258247146,-609.19489942,0.00026806,6]
[381528144,1756258247155,-204.69179791,0.00027,2]
[381528146,1756258247165,-201.93286099,0.00027225,2]
[381528148,1756258247175,-786.0384619,0.00027496,2]
[381528150,1756258247184,-1931.41,0.000275,7]
[381528152,1756258247194,-18081.18458296,0.000275,2]
[381528154,1756258247203,-800.0,0.00027539,2]
[381528156,1756258247213,-200.0,0.00027648,2]
[381528158,1756258247222,-417.15472785,0.00027663,2]
[381528160,1756258247231,-160.0,0.00027663,2]
[381528162,1756258247240,-160.0,0.00027663,2]
[381528164,1756258247251,-12704.43797926,0.00027675,2]
[381528166,1756258247260,-160.0,0.00027675,2]
[381528168,1756258247269,-425.33923475,0.00027675,2]
[381528170,1756258247278,-160.0,0.00027675,2]
[381528172,1756258247288,-217.18350301,0.00027675,2]
[381528174,1756258247297,-232.53539143,0.00027675,2]
[381528176,1756258247306,-529.4218694,0.00027679,2]
[381528178,1756258247315,-216.09257821,0.00027679,2]
[381528180,1756258247325,-1864.59660497,0.0002778,2]
[381528182,1756258247334,-1864.59660497,0.0002779,2]
[381528184,1756258247344,-3805.19,0.000278,7]
[381528185,1756258247353,-39857.50129025,0.000278,7]
[381528190,1756258248899,530.803835,0.00013699,2]
[381528191,1756258248942,530.803835,0.00020187,2]
[381528193,1756258280624,517.91600057,0.000199,2]
[381528194,1756258280683,517.91600036,0.00021627,2]
[381528195,1756258280724,517.91600036,0.00023353,2]
[381528196,1756258280766,517.91600036,0.0002508,2]
[381528197,1756258383176,185.0,0.00031751,60]
[381528199,1756258460311,448.75696208,0.000199,2]
[381528200,1756258460431,448.75696183,0.00021627,2]
[381528201,1756258460530,448.75696183,0.00023353,2]
[381528202,1756258460633,448.75696183,0.0002508,2]
[381528203,1756258466281,498.09,0.00031751,60]
[381528204,1756258635806,430.72640366,0.000199,2]
[381528205,1756258635844,430.72640343,0.00021627,2]
[381528206,1756258635894,430.72640343,0.00023353,2]
[381528207,1756258635935,430.72640343,0.0002508,2]
[381528208,1756258679174,268.85035235,0.00024944,2]
[381528210,1756258820275,397.9504658,0.000199,2]
[381528211,1756258820394,397.9504658,0.00021627,2]
[381528212,1756258820494,397.9504658,0.00023353,2]
[381528213,1756258820609,397.9504658,0.0002508,2]
[381528216,1756258996143,344.89040379,0.000199,2]
[381528217,1756258996224,344.89040369,0.00021627,2]
[381528218,1756258996318,344.89040369,0.00023353,2]
[381528219,1756258996418,344.89040369,0.0002508,2]
[381528221,1756259176995,298.92698758,0.000199,2]
[381528222,1756259177306,298.92698753,0.00021627,2]
[381528223,1756259177421,298.92698753,0.00023353,2]
[381528224,1756259177518,298.92698753,0.0002508,2]
[381528225,1756259239467,167.842531,0.00025069,2]
[381528227,1756259288086,505.390213,0.00013699,2]
[381528228,1756259288320,505.390213,0.00020187,2]
[381528229,1756259303033,-227.191258,0.00025743,2]
[381528230,1756259334106,188.19524665,0.00025044,2]
[381528231,1756259351911,259.07005613,0.000199,2]
[381528232,1756259352043,259.07005585,0.00021627,2]
[381528233,1756259352206,259.07005585,0.00023353,2]
[381528234,1756259352240,259.07005585,0.0002508,2]
[381528302,1756259437806,-321.1176123,0.00025743,2]
[381528304,1756259437816,-368.46870258,0.00025778,2]
[381528306,1756259437826,-614.705523,0.00025844,2]
[381528308,1756259437835,-441.1833506,0.0002587,2]
[381528310,1756259437845,-505.390213,0.00026676,2]
[381528311,1756259437855,-199.61503381,0.00026706,88]
[381528314,1756259437865,-2.70945022,0.00026799,2]
[381528407,1756259438778,-183.23645434,0.00025412,2]
[381528541,1756259440364,-127.90613066,0.00025412,2]
[381528559,1756259442915,-173.14903318,0.00026799,2]
[381528560,1756259442924,-500.0,0.00026799,2]
[381528561,1756259442933,-500.0,0.00026799,2]
[381528562,1756259442943,-500.0,0.00026799,2]
[381528563,1756259442952,-500.0,0.00026799,2]
[381528564,1756259442961,-500.0,0.00026799,2]
[381528565,1756259442972,-500.0,0.00026799,2]
[381528566,1756259442981,-500.0,0.00026799,2]
[381528567,1756259442990,-500.0,0.00026799,2]
[381528568,1756259443000,-500.0,0.00026799,2]
[381528569,1756259443009,-500.0,0.00026799,2]
[381528570,1756259443018,-500.0,0.00026799,2]
[381528572,1756259443028,-500.0,0.00026799,2]
[381528573,1756259443041,-277.91115161,0.00026799,2]
[381528576,1756259443119,-222.08884839,0.00026799,2]
[381528577,1756259443129,-500.0,0.00026799,2]
[381528578,1756259443138,-203.14920668,0.00026799,2]
[381528779,1756259446119,-296.85079332,0.00026799,2]
[381528781,1756259446129,-31.78674641,0.00026799,2]
[381528861,1756259446879,-476.72318994,0.00026799,2]
[381528863,1756259446888,-500.0,0.00026799,2]
[381528865,1756259446897,-500.0,0.00026799,2]
[381528867,1756259446906,-458.65067577,0.00026799,2]
[381528869,1756259446915,-500.0,0.00026799,2]
[381528871,1756259446925,-500.0,0.00026799,2]
[381528873,1756259446935,-500.0,0.00026799,2]
[381528875,1756259446944,-500.0,0.00026799,2]